Workbook

Sheet EXCEL WITH FORMULAS
E1: PRICE SCHEDULE
C2: PROJECT NAME Provision of cleaning sevices on the Dust and Ash Plant at Matla Power station
C5: Item | D5: Description | H5: Unit | I5: Quantity | J5: Rate | K5: Amount
D6: SECTION 1 - PRELIMINARIES & GENERAL
C7: 1 | D7: Site Establishment | H7: Sum | I7: 1 | K7: =I7*J7 -> 0
C8: 2 | D8: Site De-establishment | H8: Sum | I8: 1 | K8: =I8*J8 -> 0
C9: 3 | D9: Transport | H9: Monthly | I9: 60 | K9: =I9*J9 -> 0
C10: 4 | D10: SHEQ File | H10: Sum | I10: 1 | K10: =I10*J10 -> 0
C11: 6 | D11: Meeting all SHEQ requirements(PPE, Medicals, Police Clearance etc.) | H11: Sum | I11: 1 | K11: =I11*J11 -> 0
C12: Total Preliminaries and General | K12: =SUM(K7:K11) -> 0
C14: Item | D14: Description | E14: Unit | F14: No of Employees | G14: Months | H14: Hours in a month | I14: (A) Total Hours | J14: (B) Rate per hour | K14: (C= A X B) Totals
D15: SECTION 2 - LABOUR
D16: NORMAL TIME DAY SHIT
C17: 1 | D17: General Workers | E17: Hrs | F17: 48.00 | G17: =5*12 -> 60 | H17: =8*22 -> 176 | I17: =F17*G17*H17 -> 506880 | K17: =I17*J17 -> 0
C18: 2 | D18: Opperators | E18: Hrs | F18: 12.00 | G18: 60 | H18: =8*22 -> 176 | I18: =F18*G18*H18 -> 126720 | K18: =I18*J18 -> 0
C19: 3 | D19: Supervisor | E19: Hrs | F19: 4.00 | G19: 60 | H19: =8*22 -> 176 | I19: 42240 | K19: 0
C20: 4 | D20: Site Manager | E20: Hrs | F20: 1.00 | G20: 60 | H20: 176 | I20: 10560 | K20: 0
C21: 5 | D21: Safety Officer | E21: Hrs | F21: 1.00 | G21: 60 | H21: 176 | I21: 10560 | K21: 0
D22: Sub-Total (Normal Time Day Shift) | K22: =SUM(K17:K21) -> 0
C24: Item | D24: Description | E24: Unit | F24: No of Employees | G24: Months | H24: Hours in a month | I24: (A) Total Hours | J24: (B) Rate per hour | K24: (C= A X B) Totals
D25: NORMAL OVERTIME AND SATURDAYS
C26: 1 | D26: General Workers | E26: Hrs | F26: 48.00 | G26: 60 | H26: 60 | I26: =F26*G26*H26 -> 172800 | K26: =I26*J26 -> 0
C27: 2 | D27: Opperators | E27: Hrs | F27: 12.00 | G27: 60 | H27: 60 | I27: =F27*G27*H27 -> 43200 | K27: =I27*J27 -> 0
C28: 3 | D28: Supervisor | E28: Hrs | F28: 4.00 | G28: 60 | H28: 30 | I28: 7200 | K28: =I28*J28 -> 0
C29: 4 | D29: Safety Officer | E29: Hrs | F29: 1.00 | G29: 60 | H29: 30 | I29: 1800 | K29: =I29*J29 -> 0
D30: Sub-Total (Normal Overtime and Saturdays) | K30: =SUM(K26:K29) -> 0
C32: Item | D32: Description | E32: Unit | F32: No of Employees | G32: Months | H32: Hours in a month | I32: (A) Total Hours | J32: (B) Rate per hour | K32: (C= A X B) Totals
D33: OVERTIME SUNDAY/ HOLIDAYS
C34: 1 | D34: General Workers | E34: Hrs | F34: 48 | G34: 60 | H34: 40 | I34: =F34*G34*H34 -> 115200 | K34: =F34*G34*H34*J34 -> 0
C35: 2 | D35: Opperators | E35: Hrs | F35: 12 | G35: 60 | H35: 40 | I35: =F35*G35*H35 -> 28800 | K35: =F35*G35*H35*J35 -> 0
C36: 3 | D36: Supervisor | E36: Hrs | F36: 4 | G36: 60 | H36: 40 | I36: 9600 | K36: 0
C37: 4 | D37: Safety Officer | E37: Hrs | F37: 1 | G37: 60 | H37: 40 | I37: 2400 | K37: 0
D38: Sub-Total (Overtime Sunday/Holidays) | K38: =SUM(K34:K37) -> 0
C39: Total Labour (Normal Time Day Shift, Normal Overtime and Saturday) | K39: =K38+K30+K22 -> 0
C41: Item | D41: Description | E41: Unit | F41: No of Plant | G41: Months | H41: Hours in a month | I41: (A) Total Hours | J41: (B) Rate per hour | K41: (C= A X B) Totals
D42: SECTION 3 - PLANT
D43: NORMAL TIME DAY SHIFT
C44: 1 | D44: 10 m3 Tipper Truck | E44: month | F44: 6 | G44: 60 | H44: =22*8 -> 176 | I44: =F44*G44*H44 -> 63360 | K44: =I44*J44 -> 0
C45: 2 | D45: TLB | E45: month | F45: 2 | G45: 60 | H45: =22*8 -> 176 | I45: =F45*G45*H45 -> 21120 | K45: =I45*J45 -> 0
C46: 3 | D46: Bobcat | E46: month | F46: 2 | G46: 60 | H46: 176 | I46: 21120 | K46: 0
C47: 4 | D47: Vacum Truck | E47: month | F47: 2 | G47: 60 | H47: 176 | I47: 21120 | K47: 0
D48: Sub-Total (Normal Time Day Shift ) | K48: =SUM(K44:K47) -> 0
C50: Item | D50: Description | E50: Unit | F50: No of Plant | G50: Months | H50: Hours in a month | I50: (A) Total Hours | J50: (B) Rate per hour | K50: (C= A X B) Totals
D51: NORMAL OVERTIME AND SATURDAYS
C52: 1 | D52: 10 m3 Tipper Truck | E52: month | F52: 6 | G52: 60 | H52: 60 | I52: =F52*G52*H52 -> 21600 | K52: =I52*J52 -> 0
C53: 2 | D53: TLB | E53: month | F53: 2 | G53: 60 | H53: 60 | I53: =F53*G53*H53 -> 7200 | K53: =I53*J53 -> 0
C54: 3 | D54: Bobcat | E54: month | F54: 2 | G54: 60 | H54: 60 | I54: 7200 | K54: =I54*J54 -> 0
C55: 4 | D55: Vacum Truck | E55: month | F55: 2 | G55: 60 | H55: 60 | I55: 7200 | K55: =I55*J55 -> 0
D56: Sub-Total (Normal Overtme and satureday ) | K56: =SUM(K52:K55) -> 0
C58: Item | D58: Description | E58: Unit | F58: No of Plant | G58: Months | H58: Hours in a month | I58: (A) Total Hours | J58: (B) Rate per hour | K58: (C= A X B) Totals
D59: OVERTIME SUNDAYS AND HOLIDAYS
C60: 1 | D60: 10 m3 Tipper Truck | E60: month | F60: 6 | G60: 60 | H60: 40 | I60: =F60*G60*H60 -> 14400 | K60: =I60*J60 -> 0
C61: 2 | D61: TLB | E61: month | F61: 2 | G61: 60 | H61: 40 | I61: =F61*G61*H61 -> 4800 | K61: =I61*J61 -> 0
C62: 3 | D62: Bobcat | E62: month | F62: 2 | G62: 60 | H62: 40 | I62: 4800 | K62: =I62*J62 -> 0
C63: 4 | D63: Vacum Truck | E63: month | F63: 2 | G63: 60 | H63: 40 | I63: 4800 | K63: =I63*J63 -> 0
D64: Sub-Total (Overtme Sundays and Holidays) | K64: =SUM(K60:K63) -> 0
C66: Total (Plant) | K66: =K48+K56+K64 -> 0
C68: Item | D68: Description | H68: Unit | I68: Quantity | J68: Rate | K68: Amount
D69: SECTION 4 - TOOLS AND EQUIPMENT
C70: 1 | D70: Cleaning Equipment | H70: Sum | I70: 5 | K70: =I70*J70 -> 0
C71: Total (Tools and Equipment) | K71: =K70 -> 0
C73: TOTAL EXCLUDING VAT | K73: =K71+K66+K39+K12 -> 0

Sheet PDF FOR HAND WRITTEN
B1: PRICE SCHEDULE
B2: PROJECT NAME Provision of cleaning sevices on the Dust and Ash Plant at Matla Power station
B7: Item | C7: Description | G7: Unit | H7: Quantity | I7: Rate | J7: Amount
C8: SECTION 1 - PRELIMINARIES & GENERAL
B9: 1 | C9: Site Establishment | G9: Sum | H9: 1
B10: 2 | C10: Site De-establishment | G10: Sum | H10: 1
B11: 3 | C11: Transport | G11: Monthly | H11: 60
B12: 4 | C12: SHEQ File | G12: Sum | H12: 1
B13: 6 | C13: Meeting all SHEQ requirements(PPE, Medicals, Police Clearance etc.) | G13: Sum | H13: 1
B14: Total Preliminaries and General
B16: Item | C16: Description | D16: Unit | E16: No of Employees | F16: Months | G16: Hours in a month | H16: (A) Total Hours | I16: (B) Rate per hour | J16: (C= A X B) Totals
C17: SECTION 2 - LABOUR
C18: NORMAL TIME DAY SHIT
B19: 1 | C19: General Workers | D19: Hrs | E19: 48.00 | F19: =5*12 -> 60 | G19: =8*22 -> 176 | H19: =E19*F19*G19 -> 506880
B20: 2 | C20: Opperators | D20: Hrs | E20: 12.00 | F20: 60 | G20: =8*22 -> 176 | H20: =E20*F20*G20 -> 126720
B21: 3 | C21: Supervisor | D21: Hrs | E21: 4.00 | F21: 60 | G21: =8*22 -> 176 | H21: 42240
B22: 4 | C22: Site Manager | D22: Hrs | E22: 1.00 | F22: 60 | G22: 176 | H22: 10560
B23: 5 | C23: Safety Officer | D23: Hrs | E23: 1.00 | F23: 60 | G23: 176 | H23: 10560
C24: Sub-Total (Normal Time Day Shift)
B26: Item | C26: Description | D26: Unit | E26: No of Employees | F26: Months | G26: Hours in a month | H26: (A) Total Hours | I26: (B) Rate per hour | J26: (C= A X B) Totals
C27: NORMAL OVERTIME AND SATURDAYS
B28: 1 | C28: General Workers | D28: Hrs | E28: 48.00 | F28: 60 | G28: 60 | H28: =E28*F28*G28 -> 172800
B29: 2 | C29: Opperators | D29: Hrs | E29: 12.00 | F29: 60 | G29: 60 | H29: =E29*F29*G29 -> 43200
B30: 3 | C30: Supervisor | D30: Hrs | E30: 4.00 | F30: 60 | G30: 30 | H30: 7200
B31: 4 | C31: Safety Officer | D31: Hrs | E31: 1.00 | F31: 60 | G31: 30 | H31: 1800
C32: Sub-Total (Normal Overtime and Saturdays)
B34: Item | C34: Description | D34: Unit | E34: No of Employees | F34: Months | G34: Hours in a month | H34: (A) Total Hours | I34: (B) Rate per hour | J34: (C= A X B) Totals
C35: OVERTIME SUNDAY/ HOLIDAYS
B36: 1 | C36: General Workers | D36: Hrs | E36: 48 | F36: 60 | G36: 40 | H36: =E36*F36*G36 -> 115200
B37: 2 | C37: Opperators | D37: Hrs | E37: 12 | F37: 60 | G37: 40 | H37: =E37*F37*G37 -> 28800
B38: 3 | C38: Supervisor | D38: Hrs | E38: 4 | F38: 60 | G38: 40 | H38: 9600
B39: 4 | C39: Safety Officer | D39: Hrs | E39: 1 | F39: 60 | G39: 40 | H39: 2400
C40: Sub-Total (Overtime Sunday/Holidays)
B41: Total Labour (Normal Time Day Shift, Normal Overtime and Saturday) | J41: =J40+J32+J24 -> 0
B43: Item | C43: Description | D43: Unit | E43: No of Plant | F43: Months | G43: Hours in a month | H43: (A) Total Hours | I43: (B) Rate per hour | J43: (C= A X B) Totals
C44: SECTION 3 - PLANT
C45: NORMAL TIME DAY SHIFT
B46: 1 | C46: 10 m3 Tipper Truck | D46: month | E46: 6 | F46: 60 | G46: =22*8 -> 176 | H46: =E46*F46*G46 -> 63360
B47: 2 | C47: TLB | D47: month | E47: 2 | F47: 60 | G47: =22*8 -> 176 | H47: =E47*F47*G47 -> 21120
B48: 3 | C48: Bobcat | D48: month | E48: 2 | F48: 60 | G48: 176 | H48: 21120
B49: 4 | C49: Vacum Truck | D49: month | E49: 2 | F49: 60 | G49: 176 | H49: 21120
C50: Sub-Total (Normal Time Day Shift )
B52: Item | C52: Description | D52: Unit | E52: No of Plant | F52: Months | G52: Hours in a month | H52: (A) Total Hours | I52: (B) Rate per hour | J52: (C= A X B) Totals
C53: NORMAL OVERTIME AND SATURDAYS
B54: 1 | C54: 10 m3 Tipper Truck | D54: month | E54: 6 | F54: 60 | G54: 60 | H54: =E54*F54*G54 -> 21600
B55: 2 | C55: TLB | D55: month | E55: 2 | F55: 60 | G55: 60 | H55: =E55*F55*G55 -> 7200
B56: 3 | C56: Bobcat | D56: month | E56: 2 | F56: 60 | G56: 60 | H56: 7200
B57: 4 | C57: Vacum Truck | D57: month | E57: 2 | F57: 60 | G57: 60 | H57: 7200
C58: Sub-Total (Normal Overtme and satureday )
B60: Item | C60: Description | D60: Unit | E60: No of Plant | F60: Months | G60: Hours in a month | H60: (A) Total Hours | I60: (B) Rate per hour | J60: (C= A X B) Totals
C61: OVERTIME SUNDAYS AND HOLIDAYS
B62: 1 | C62: 10 m3 Tipper Truck | D62: month | E62: 6 | F62: 60 | G62: 40 | H62: =E62*F62*G62 -> 14400
B63: 2 | C63: TLB | D63: month | E63: 2 | F63: 60 | G63: 40 | H63: =E63*F63*G63 -> 4800
B64: 3 | C64: Bobcat | D64: month | E64: 2 | F64: 60 | G64: 40 | H64: 4800
B65: 4 | C65: Vacum Truck | D65: month | E65: 2 | F65: 60 | G65: 40 | H65: 4800
C66: Sub-Total (Overtme Sundays and Holidays)
B68: Total (Plant)
B70: Item | C70: Description | G70: Unit | H70: Quantity | I70: Rate | J70: Amount
C71: SECTION 4 - TOOLS AND EQUIPMENT
B72: 1 | C72: Cleaning Equipment | G72: Sum | H72: 5
B73: Total (Tools and Equipment)
B75: TOTAL EXCLUDING VAT
